[Event "*** MasterClass Titled Tuesday Blitz"]
[Site "Chess.com"]
[Date "2017.08.01"]
[Round "1"]
[White "AllStarShark"]
[Black "OldweakGM"]
[Result "0-1"]
[WhiteElo "2301"]
[BlackElo "2606"]
[TimeControl "180+2"]
[EndTime "13:08:12 PDT"]
[Termination "OldweakGM won by resignation"]

1. d4 {[%clk 0:03:01.9]} 1... Nf6 {[%clk 0:03:00.3]} 2. c4 {[%clk 0:03:01.2]}
2... e6 {[%clk 0:03:01.5]} 3. Nc3 {[%clk 0:03:02.2]} 3... Bb4 {[%clk 0:03:00.5]}
4. e3 {[%clk 0:03:02.6]} 4... O-O {[%clk 0:03:00.4]} 5. Bd3 {[%clk 0:03:03.7]}
5... d5 {[%clk 0:03:01.4]} 6. Ne2 {[%clk 0:03:03.9]} 6... c5 {[%clk 0:03:00.9]}
7. cxd5 {[%clk 0:03:03.8]} 7... cxd4 {[%clk 0:02:57.7]} 8. exd4 {[%clk
0:03:00.2]} 8... Nxd5 {[%clk 0:02:54.8]} 9. O-O {[%clk 0:03:00]} 9... Nc6 {[%clk
0:02:56.1]} 10. a3 {[%clk 0:02:37.3]} 10... Be7 {[%clk 0:02:56.3]} 11. Nxd5
{[%clk 0:02:31.8]} 11... Qxd5 {[%clk 0:02:38.5]} 12. Be3 {[%clk 0:02:28.5]}
12... Rd8 {[%clk 0:02:33.5]} 13. Rc1 {[%clk 0:02:19.7]} 13... g6 {[%clk
0:02:24.9]} 14. Bc4 {[%clk 0:02:04.6]} 14... Qd6 {[%clk 0:02:20.5]} 15. b4
{[%clk 0:01:48.2]} 15... Bd7 {[%clk 0:02:18.4]} 16. Qb3 {[%clk 0:01:38.9]} 16...
Bf6 {[%clk 0:02:05.6]} 17. Rfd1 {[%clk 0:01:38.4]} 17... Ne7 {[%clk 0:02:02.2]}
18. d5 {[%clk 0:01:34.5]} 18... Nxd5 {[%clk 0:01:52.5]} 19. Bxd5 {[%clk
0:01:33.7]} 19... exd5 {[%clk 0:01:53.2]} 20. Rxd5 {[%clk 0:01:20.3]} 20... Qe7
{[%clk 0:01:53.1]} 21. Qd3 {[%clk 0:01:15.2]} 21... Bc6 {[%clk 0:01:50.5]} 22.
Rxd8+ {[%clk 0:01:07.9]} 22... Rxd8 {[%clk 0:01:52.4]} 23. Qc2 {[%clk
0:01:03.2]} 23... a6 {[%clk 0:01:48.1]} 24. Rd1 {[%clk 0:01:01.3]} 24... Rxd1+
{[%clk 0:01:48.7]} 25. Qxd1 {[%clk 0:01:03.2]} 25... Qe4 {[%clk 0:01:50.1]} 26.
Qf1 {[%clk 0:00:49.1]} 26... Qd3 {[%clk 0:01:39.5]} 27. Nd4 {[%clk 0:00:42.5]}
27... Qxa3 {[%clk 0:01:40.3]} 28. Nxc6 {[%clk 0:00:43.1]} 28... bxc6 {[%clk
0:01:41.6]} 29. Bc5 {[%clk 0:00:43]} 29... Qa1 {[%clk 0:01:38]} 30. Qxa1 {[%clk
0:00:40.4]} 30... Bxa1 {[%clk 0:01:39.9]} 31. Kf1 {[%clk 0:00:41.9]} 31... f5
{[%clk 0:01:41]} 32. Ke2 {[%clk 0:00:42.9]} 32... Kf7 {[%clk 0:01:42.4]} 33. Kd3
{[%clk 0:00:44.4]} 33... Ke6 {[%clk 0:01:43.8]} 34. Kc4 {[%clk 0:00:45.8]} 34...
Be5 {[%clk 0:01:44.7]} 35. g3 {[%clk 0:00:46.4]} 35... f4 {[%clk 0:01:45]} 36.
Bf8 {[%clk 0:00:44.6]} 36... f3 {[%clk 0:01:29.2]} 37. Kd3 {[%clk 0:00:39.3]}
37... Kd5 {[%clk 0:01:28.8]} 38. Ke3 {[%clk 0:00:40.4]} 38... Bd6 {[%clk
0:01:26.3]} 39. Bxd6 {[%clk 0:00:24.7]} 39... Kxd6 {[%clk 0:01:27.4]} 40. Kxf3
{[%clk 0:00:26.2]} 40... c5 {[%clk 0:01:28.9]} 41. bxc5+ {[%clk 0:00:26.1]}
41... Kxc5 {[%clk 0:01:30.8]} 42. Ke4 {[%clk 0:00:26.9]} 42... a5 {[%clk
0:01:27.8]} 43. Kd3 {[%clk 0:00:22.8]} 43... Kd5 {[%clk 0:01:20.9]} 44. f4
{[%clk 0:00:23.4]} 44... h5 {[%clk 0:01:19.2]} 45. h3 {[%clk 0:00:23.8]} 45...
a4 {[%clk 0:01:20.3]} 46. g4 {[%clk 0:00:23.9]} 46... h4 {[%clk 0:01:21.7]} 47.
Kc3 {[%clk 0:00:21]} 47... Ke4 {[%clk 0:01:22.5]} 48. f5 {[%clk 0:00:22.5]}
48... gxf5 {[%clk 0:01:23.6]} 49. g5 {[%clk 0:00:23.1]} 49... Ke5 {[%clk
0:01:24.9]} 50. Kb4 {[%clk 0:00:23.4]} 50... f4 {[%clk 0:01:26.2]} 51. Kxa4
{[%clk 0:00:25]} 51... f3 {[%clk 0:01:26.5]} 52. g6 {[%clk 0:00:26.9]} 52... Kf6
{[%clk 0:01:27.6]} 53. g7 {[%clk 0:00:28.8]} 53... Kxg7 {[%clk 0:01:29]} 54. Kb3
{[%clk 0:00:29.8]} 54... f2 {[%clk 0:01:30.4]} 0-1

[Event "*** MasterClass Titled Tuesday Blitz"]
[Site "Chess.com"]
[Date "2017.08.01"]
[Round "1"]
[White "kleinebeer98"]
[Black "Lord_Neezy"]
[Result "1-0"]
[WhiteElo "2467"]
[BlackElo "2158"]
[TimeControl "180+2"]
[EndTime "13:08:14 PDT"]
[Termination "kleinebeer98 won by resignation"]

1. e4 {[%clk 0:02:59.5]} 1... e6 {[%clk 0:02:41]} 2. d4 {[%clk 0:02:59.6]} 2...
d5 {[%clk 0:02:42.5]} 3. Nd2 {[%clk 0:02:59.1]} 3... c5 {[%clk 0:02:42.3]} 4.
exd5 {[%clk 0:02:56.4]} 4... Qxd5 {[%clk 0:02:44.2]} 5. Ngf3 {[%clk 0:02:51.9]}
5... Nc6 {[%clk 0:02:43.3]} 6. dxc5 {[%clk 0:02:42.6]} 6... Bxc5 {[%clk
0:02:34.3]} 7. Bc4 {[%clk 0:02:23.1]} 7... Qd8 {[%clk 0:02:31.3]} 8. O-O {[%clk
0:02:23.3]} 8... a6 {[%clk 0:02:29.1]} 9. a4 {[%clk 0:02:19]} 9... Qc7 {[%clk
0:02:25.4]} 10. Ne4 {[%clk 0:02:17.1]} 10... Be7 {[%clk 0:02:26.4]} 11. Bg5
{[%clk 0:02:07.8]} 11... Nf6 {[%clk 0:01:46.4]} 12. Qe2 {[%clk 0:02:01.1]} 12...
Nxe4 {[%clk 0:01:43.3]} 13. Qxe4 {[%clk 0:02:03]} 13... Bd7 {[%clk 0:01:38.6]}
14. Rfd1 {[%clk 0:01:48.1]} 14... Bxg5 {[%clk 0:01:33.6]} 15. Nxg5 {[%clk
0:01:50]} 15... Qe5 {[%clk 0:01:24.4]} 16. Qh4 {[%clk 0:01:23]} 16... Rd8 {[%clk
0:01:04.7]} 17. c3 {[%clk 0:01:10.1]} 17... h6 {[%clk 0:00:57.3]} 18. Nf3 {[%clk
0:00:49.6]} 18... Qc5 {[%clk 0:00:57.9]} 19. Rd2 {[%clk 0:00:45.3]} 19... b5
{[%clk 0:00:40.3]} 20. axb5 {[%clk 0:00:42.4]} 20... axb5 {[%clk 0:00:42.2]} 21.
Bf1 {[%clk 0:00:40.1]} 21... O-O {[%clk 0:00:38.8]} 22. Rad1 {[%clk 0:00:39]}
22... Nb8 {[%clk 0:00:21.2]} 23. Qd4 {[%clk 0:00:32]} 23... Qc7 {[%clk
0:00:15.3]} 24. Ne5 {[%clk 0:00:27.6]} 24... Nc6 {[%clk 0:00:13]} 25. Nxc6
{[%clk 0:00:21.3]} 25... Bxc6 {[%clk 0:00:14.9]} 26. Qxd8 {[%clk 0:00:21.8]}
26... Rxd8 {[%clk 0:00:16.8]} 27. Rxd8+ {[%clk 0:00:23.4]} 27... Kh7 {[%clk
0:00:18.5]} 28. R8d4 {[%clk 0:00:17.1]} 28... Qe5 {[%clk 0:00:16]} 29. h4 {[%clk
0:00:16.8]} 29... Bd5 {[%clk 0:00:15.8]} 30. Bxb5 {[%clk 0:00:16]} 30... Bxg2
{[%clk 0:00:15.9]} 31. Bd3+ {[%clk 0:00:17.3]} 31... g6 {[%clk 0:00:14.3]} 32.
Kxg2 {[%clk 0:00:18.5]} 32... Qf6 {[%clk 0:00:13.5]} 33. Re1 {[%clk 0:00:17.7]}
33... Kg7 {[%clk 0:00:14.8]} 34. Be2 {[%clk 0:00:13.9]} 34... h5 {[%clk
0:00:14.9]} 35. Bf3 {[%clk 0:00:14.4]} 35... Qd8 {[%clk 0:00:15.7]} 36. Rxd8
{[%clk 0:00:15.2]} 1-0

[Event "*** MasterClass Titled Tuesday Blitz"]
[Site "Chess.com"]
[Date "2017.08.01"]
[Round "1"]
[White "ehrenfeld"]
[Black "pawnwonder"]
[Result "1-0"]
[WhiteElo "2403"]
[BlackElo "1862"]
[TimeControl "180+2"]
[EndTime "13:08:17 PDT"]
[Termination "ehrenfeld won by resignation"]

1. e4 {[%clk 0:02:52.9]} 1... c5 {[%clk 0:03:00.3]} 2. Nf3 {[%clk 0:02:53.2]}
2... Nc6 {[%clk 0:03:01]} 3. Bb5 {[%clk 0:02:53.9]} 3... g6 {[%clk 0:03:00.9]}
4. Bxc6 {[%clk 0:02:54.8]} 4... bxc6 {[%clk 0:03:02.8]} 5. O-O {[%clk 0:02:55]}
5... Bg7 {[%clk 0:03:03.8]} 6. Re1 {[%clk 0:02:56]} 6... Nh6 {[%clk 0:02:51.5]}
7. c3 {[%clk 0:02:56.6]} 7... O-O {[%clk 0:02:51.8]} 8. d4 {[%clk 0:02:57.2]}
8... cxd4 {[%clk 0:02:52.3]} 9. cxd4 {[%clk 0:02:58.2]} 9... d5 {[%clk
0:02:52.7]} 10. Ne5 {[%clk 0:02:40.4]} 10... Qb6 {[%clk 0:02:31.7]} 11. exd5
{[%clk 0:02:37.1]} 11... cxd5 {[%clk 0:02:28]} 12. Nc3 {[%clk 0:02:37.9]} 12...
e6 {[%clk 0:02:14.4]} 13. Na4 {[%clk 0:02:37.7]} 13... Qc7 {[%clk 0:02:11.8]}
14. Bf4 {[%clk 0:02:36.9]} 14... Qa5 {[%clk 0:02:01.8]} 15. Rc1 {[%clk
0:02:21.5]} 15... Nf5 {[%clk 0:01:49.7]} 16. a3 {[%clk 0:02:10.7]} 16... Bb7
{[%clk 0:01:35.3]} 17. Nc5 {[%clk 0:02:04.7]} 17... Bc8 {[%clk 0:01:32]} 18. Qd3
{[%clk 0:01:37.5]} 18... Qb6 {[%clk 0:01:20.5]} 19. Ncd7 {[%clk 0:01:35.6]}
19... Qxb2 {[%clk 0:01:08.3]} 20. Nxf8 {[%clk 0:01:27.6]} 20... Bxf8 {[%clk
0:01:08.8]} 21. Nc6 {[%clk 0:01:16.7]} 21... Qxa3 {[%clk 0:01:03.3]} 22. Qxa3
{[%clk 0:01:16.5]} 22... Bxa3 {[%clk 0:01:02.5]} 23. Ra1 {[%clk 0:01:14.6]}
23... Bb2 {[%clk 0:01:03]} 24. Ra2 {[%clk 0:01:11.2]} 24... Bxd4 {[%clk
0:01:02.1]} 25. g4 {[%clk 0:01:03.8]} 25... Bd7 {[%clk 0:00:56.6]} 26. Nb8
{[%clk 0:00:55.3]} 26... Nh4 {[%clk 0:00:42.4]} 27. Nxd7 {[%clk 0:00:52.3]}
27... Nf3+ {[%clk 0:00:42.4]} 28. Kf1 {[%clk 0:00:53.5]} 28... Nxe1 {[%clk
0:00:40.8]} 29. Kxe1 {[%clk 0:00:54.6]} 29... Rc8 {[%clk 0:00:35.9]} 30. Be3
{[%clk 0:00:50.8]} 30... Bxe3 {[%clk 0:00:30.5]} 31. fxe3 {[%clk 0:00:51.5]}
31... Rc3 {[%clk 0:00:31.8]} 32. Kd2 {[%clk 0:00:51.7]} 32... Rb3 {[%clk
0:00:31.9]} 33. Ne5 {[%clk 0:00:47.6]} 33... Rb7 {[%clk 0:00:30]} 34. g5 {[%clk
0:00:48.2]} 34... Kg7 {[%clk 0:00:30.4]} 35. Ng4 {[%clk 0:00:49.3]} 35... Rb4
{[%clk 0:00:27.8]} 36. h3 {[%clk 0:00:42.2]} 36... Rb7 {[%clk 0:00:25.2]} 37.
Kd3 {[%clk 0:00:41.7]} 37... Rc7 {[%clk 0:00:25.8]} 38. Rb2 {[%clk 0:00:41.6]}
38... a5 {[%clk 0:00:23.6]} 39. Rb8 {[%clk 0:00:41.5]} 39... Ra7 {[%clk
0:00:25.5]} 40. Nf6 {[%clk 0:00:41.8]} 1-0

[Event "*** MasterClass Titled Tuesday Blitz"]
[Site "Chess.com"]
[Date "2017.08.01"]
[Round "1"]
[White "Rumpel-VK"]
[Black "Illingworth"]
[Result "1-0"]
[WhiteElo "2406"]
[BlackElo "2656"]
[TimeControl "180+2"]
[EndTime "13:08:22 PDT"]
[Termination "Rumpel-VK won by resignation"]

1. d4 {[%clk 0:03:00]} 1... d5 {[%clk 0:03:00.2]} 2. c4 {[%clk 0:02:59.1]} 2...
c6 {[%clk 0:03:01.2]} 3. cxd5 {[%clk 0:02:59]} 3... cxd5 {[%clk 0:03:03.1]} 4.
Bf4 {[%clk 0:02:59.9]} 4... Nc6 {[%clk 0:03:04.1]} 5. e3 {[%clk 0:02:59.9]} 5...
Bf5 {[%clk 0:03:05.1]} 6. Nc3 {[%clk 0:02:57.7]} 6... e6 {[%clk 0:03:05.8]} 7.
Qb3 {[%clk 0:02:54.9]} 7... Qd7 {[%clk 0:03:03.8]} 8. Nf3 {[%clk 0:02:51.1]}
8... f6 {[%clk 0:03:01.4]} 9. Be2 {[%clk 0:02:46.8]} 9... h5 {[%clk 0:02:58.9]}
10. h4 {[%clk 0:02:30.1]} 10... Nh6 {[%clk 0:02:54.5]} 11. Nd2 {[%clk
0:02:24.2]} 11... Nf7 {[%clk 0:02:52.5]} 12. Qd1 {[%clk 0:02:22.4]} 12... Bg6
{[%clk 0:02:37.7]} 13. Nb3 {[%clk 0:02:17.8]} 13... Rc8 {[%clk 0:02:23.5]} 14.
Bd3 {[%clk 0:02:12.5]} 14... Bxd3 {[%clk 0:02:20.5]} 15. Qxd3 {[%clk 0:02:13.3]}
15... e5 {[%clk 0:02:07.3]} 16. dxe5 {[%clk 0:02:09.1]} 16... fxe5 {[%clk
0:02:09.2]} 17. Bg3 {[%clk 0:02:08.9]} 17... Bb4 {[%clk 0:01:46.2]} 18. O-O
{[%clk 0:02:05.2]} 18... Bxc3 {[%clk 0:01:46.7]} 19. bxc3 {[%clk 0:02:05.5]}
19... Ne7 {[%clk 0:01:32.5]} 20. Rfd1 {[%clk 0:01:53]} 20... g5 {[%clk 0:01:33]}
21. Rac1 {[%clk 0:01:28.8]} 21... Rg8 {[%clk 0:01:21.7]} 22. hxg5 {[%clk
0:01:16.1]} 22... Qg4 {[%clk 0:01:11.4]} 23. Qb5+ {[%clk 0:01:02.3]} 23... Kf8
{[%clk 0:01:11.8]} 24. Nc5 {[%clk 0:01:01.4]} 24... Rxg5 {[%clk 0:00:59.4]} 25.
Nd7+ {[%clk 0:00:40]} 25... Kg7 {[%clk 0:01:00]} 26. Qxb7 {[%clk 0:00:25.5]}
26... h4 {[%clk 0:00:33.2]} 27. Nxe5 {[%clk 0:00:18.4]} 27... Nxe5 {[%clk
0:00:34.3]} 28. Qxe7+ {[%clk 0:00:14.4]} 28... Nf7 {[%clk 0:00:35.4]} 29. Rd4
{[%clk 0:00:13.2]} 29... Qe2 {[%clk 0:00:20.2]} 30. Rf4 {[%clk 0:00:09.5]} 30...
hxg3 {[%clk 0:00:10.6]} 31. Qxf7+ {[%clk 0:00:06.4]} 31... Kh6 {[%clk
0:00:09.6]} 32. Rf6+ {[%clk 0:00:07.2]} 1-0

[Event "*** MasterClass Titled Tuesday Blitz"]
[Site "Chess.com"]
[Date "2017.08.01"]
[Round "1"]
[White "Witik"]
[Black "AdrianaNikolova"]
[Result "1-0"]
[WhiteElo "2572"]
[BlackElo "2293"]
[TimeControl "180+2"]
[EndTime "13:08:36 PDT"]
[Termination "Witik won by resignation"]

1. e4 {[%clk 0:02:56.4]} 1... c5 {[%clk 0:02:59.7]} 2. Nf3 {[%clk 0:02:56.9]}
2... d6 {[%clk 0:02:59.5]} 3. Bb5+ {[%clk 0:02:57.1]} 3... Nc6 {[%clk
0:02:58.6]} 4. Bxc6+ {[%clk 0:02:57.5]} 4... bxc6 {[%clk 0:02:58.9]} 5. e5
{[%clk 0:02:59.3]} 5... dxe5 {[%clk 0:02:55]} 6. Nxe5 {[%clk 0:02:59.6]} 6...
Qd4 {[%clk 0:02:54.3]} 7. Qe2 {[%clk 0:02:55.4]} 7... e6 {[%clk 0:02:27.9]} 8.
Nc3 {[%clk 0:02:51.2]} 8... Bb7 {[%clk 0:02:23.4]} 9. b3 {[%clk 0:02:49]} 9...
Nf6 {[%clk 0:02:23.7]} 10. Bb2 {[%clk 0:02:49.7]} 10... Qh4 {[%clk 0:02:20.4]}
11. O-O-O {[%clk 0:02:45.1]} 11... Bd6 {[%clk 0:02:19.3]} 12. g3 {[%clk
0:02:38]} 12... Qb4 {[%clk 0:02:14.5]} 13. f4 {[%clk 0:02:35.5]} 13... O-O
{[%clk 0:02:13.9]} 14. h4 {[%clk 0:02:29]} 14... a5 {[%clk 0:02:13.2]} 15. a4
{[%clk 0:02:27.2]} 15... Nd5 {[%clk 0:02:08.4]} 16. Ne4 {[%clk 0:02:22.3]} 16...
Bxe5 {[%clk 0:02:03.4]} 17. fxe5 {[%clk 0:02:21.2]} 17... Ba6 {[%clk 0:02:01.5]}
18. d3 {[%clk 0:02:18.2]} 18... Rab8 {[%clk 0:01:53.9]} 19. h5 {[%clk 0:02:17]}
19... h6 {[%clk 0:01:28.1]} 20. Rh4 {[%clk 0:02:14.4]} 20... Qb6 {[%clk
0:01:25.2]} 21. Nf6+ {[%clk 0:02:06.3]} 21... gxf6 {[%clk 0:00:47.8]} 22. exf6
{[%clk 0:02:07.1]} 22... Rfd8 {[%clk 0:00:24.2]} 23. Rg4+ {[%clk 0:01:49]} 23...
Kf8 {[%clk 0:00:25]} 24. Qd2 {[%clk 0:01:46.5]} 24... Ke8 {[%clk 0:00:26.2]} 25.
Qxh6 {[%clk 0:01:47]} 25... Kd7 {[%clk 0:00:27.6]} 26. Rg7 {[%clk 0:01:44.1]}
26... Rf8 {[%clk 0:00:27.9]} 27. Qg6 {[%clk 0:01:39.1]} 27... Qb4 {[%clk
0:00:11.3]} 28. Rxf7+ {[%clk 0:01:37]} 28... Rxf7 {[%clk 0:00:13.2]} 29. Qxf7+
{[%clk 0:01:37.8]} 29... Kd6 {[%clk 0:00:12.6]} 30. h6 {[%clk 0:01:32.3]} 30...
Qg4 {[%clk 0:00:07.7]} 31. h7 {[%clk 0:01:27.9]} 31... Qg5+ {[%clk 0:00:08.1]}
32. Kb1 {[%clk 0:01:27.2]} 32... Qg4 {[%clk 0:00:07]} 33. Rh1 {[%clk 0:01:24.9]}
33... Bxd3 {[%clk 0:00:06.3]} 34. cxd3 {[%clk 0:01:12.4]} 34... Rxb3 {[%clk
0:00:06.3]} 35. Qf8+ {[%clk 0:00:44.4]} 35... Kc7 {[%clk 0:00:06.4]} 36. Qg7+
{[%clk 0:00:45.4]} 36... Qxg7 {[%clk 0:00:06]} 37. fxg7 {[%clk 0:00:46.2]} 37...
Nc3+ {[%clk 0:00:02.4]} 38. Kc2 {[%clk 0:00:46.9]} 38... Rxb2+ {[%clk
0:00:04.3]} 39. Kxb2 {[%clk 0:00:47.2]} 39... Nxa4+ {[%clk 0:00:06.2]} 40. Kc2
{[%clk 0:00:48.2]} 1-0

[Event "*** MasterClass Titled Tuesday Blitz"]
[Site "Chess.com"]
[Date "2017.08.01"]
[Round "1"]
[White "Makalexa"]
[Black "jb2mix"]
[Result "0-1"]
[WhiteElo "2154"]
[BlackElo "2465"]
[TimeControl "180+2"]
[EndTime "13:08:48 PDT"]
[Termination "jb2mix won on time"]

1. e4 {[%clk 0:03:00]} 1... e5 {[%clk 0:02:58.5]} 2. Nf3 {[%clk 0:03:00.3]} 2...
Nc6 {[%clk 0:02:58.7]} 3. Bb5 {[%clk 0:03:00.3]} 3... a6 {[%clk 0:02:59]} 4. Ba4
{[%clk 0:03:00.1]} 4... Nf6 {[%clk 0:02:58.3]} 5. O-O {[%clk 0:03:00]} 5... b5
{[%clk 0:02:59.6]} 6. Bb3 {[%clk 0:02:59.7]} 6... Bb7 {[%clk 0:02:58]} 7. d3
{[%clk 0:02:58.9]} 7... Be7 {[%clk 0:02:57.2]} 8. a4 {[%clk 0:02:57.2]} 8... O-O
{[%clk 0:02:55.1]} 9. Nc3 {[%clk 0:02:54.9]} 9... b4 {[%clk 0:02:54.7]} 10. Ne2
{[%clk 0:02:52.9]} 10... d6 {[%clk 0:02:27.9]} 11. Ng3 {[%clk 0:02:50.3]} 11...
Bc8 {[%clk 0:02:22.8]} 12. Bg5 {[%clk 0:02:44.3]} 12... Na5 {[%clk 0:02:16.3]}
13. Ba2 {[%clk 0:02:38.5]} 13... Be6 {[%clk 0:02:11.3]} 14. Nf5 {[%clk
0:02:30.2]} 14... Bxf5 {[%clk 0:02:01.9]} 15. exf5 {[%clk 0:02:30.1]} 15... Qd7
{[%clk 0:01:45.8]} 16. Bxf6 {[%clk 0:02:24.3]} 16... Bxf6 {[%clk 0:01:45.2]} 17.
g4 {[%clk 0:02:25.4]} 17... Be7 {[%clk 0:01:38.3]} 18. Qe2 {[%clk 0:01:55.5]}
18... b3 {[%clk 0:01:27.2]} 19. cxb3 {[%clk 0:01:50.9]} 19... Rab8 {[%clk
0:01:24.8]} 20. d4 {[%clk 0:01:48.8]} 20... exd4 {[%clk 0:01:12.1]} 21. Nxd4
{[%clk 0:01:41.3]} 21... Rb4 {[%clk 0:01:11.8]} 22. Nc2 {[%clk 0:01:34.7]} 22...
Rf4 {[%clk 0:01:07]} 23. b4 {[%clk 0:01:29.3]} 23... Nc6 {[%clk 0:01:05.9]} 24.
Rfe1 {[%clk 0:01:12.3]} 24... Bf6 {[%clk 0:01:05]} 25. h3 {[%clk 0:00:59.9]}
25... Bh4 {[%clk 0:00:53.5]} 26. Rf1 {[%clk 0:00:55.4]} 26... Nxb4 {[%clk
0:00:44.3]} 27. Qd2 {[%clk 0:00:48.5]} 27... Bg5 {[%clk 0:00:38.4]} 28. Qc3
{[%clk 0:00:32.9]} 28... Nxc2 {[%clk 0:00:28.3]} 29. Qxc2 {[%clk 0:00:33.1]}
29... h5 {[%clk 0:00:30]} 30. f3 {[%clk 0:00:27]} 30... c6 {[%clk 0:00:28.2]}
31. Rac1 {[%clk 0:00:26]} 31... Rb4 {[%clk 0:00:19.2]} 32. Qxc6 {[%clk
0:00:23.7]} 32... Qa7+ {[%clk 0:00:19.7]} 33. Kg2 {[%clk 0:00:20.3]} 33... Bxc1
{[%clk 0:00:19.7]} 34. Rxc1 {[%clk 0:00:21.1]} 34... Rxb2+ {[%clk 0:00:21.1]}
35. Rc2 {[%clk 0:00:21.9]} 35... Qd4 {[%clk 0:00:22.2]} 36. Bd5 {[%clk
0:00:14.5]} 36... Rxc2+ {[%clk 0:00:21.9]} 37. Qxc2 {[%clk 0:00:13.7]} 37...
Qxd5 {[%clk 0:00:23.2]} 38. f6 {[%clk 0:00:14.2]} 38... gxf6 {[%clk 0:00:21.3]}
39. gxh5 {[%clk 0:00:15.2]} 39... Qxh5 {[%clk 0:00:22.1]} 40. Qd3 {[%clk
0:00:16.2]} 40... Qg6+ {[%clk 0:00:23.1]} 0-1

[Event "*** MasterClass Titled Tuesday Blitz"]
[Site "Chess.com"]
[Date "2017.08.01"]
[Round "1"]
[White "prochn"]
[Black "LaStreetCmaMaison"]
[Result "1-0"]
[WhiteElo "2252"]
[BlackElo "2487"]
[TimeControl "180+2"]
[EndTime "13:08:49 PDT"]
[Termination "prochn won on time"]

1. d4 {[%clk 0:03:01.9]} 1... Nc6 {[%clk 0:02:55.7]} 2. d5 {[%clk 0:02:57.4]}
2... Ne5 {[%clk 0:02:55.8]} 3. Nf3 {[%clk 0:02:52.4]} 3... Nxf3+ {[%clk
0:02:56]} 4. exf3 {[%clk 0:02:52.3]} 4... e6 {[%clk 0:02:58.2]} 5. c4 {[%clk
0:02:44.6]} 5... Nf6 {[%clk 0:02:59.5]} 6. Nc3 {[%clk 0:02:42.3]} 6... exd5
{[%clk 0:02:53.1]} 7. cxd5 {[%clk 0:02:40.4]} 7... Bc5 {[%clk 0:02:51.4]} 8. Bd3
{[%clk 0:02:38.1]} 8... h6 {[%clk 0:02:49.6]} 9. O-O {[%clk 0:02:36]} 9... O-O
{[%clk 0:02:50.3]} 10. Bc2 {[%clk 0:02:31.6]} 10... d6 {[%clk 0:02:49.8]} 11.
Qd3 {[%clk 0:02:31.9]} 11... Re8 {[%clk 0:02:46.7]} 12. Bf4 {[%clk 0:02:29.8]}
12... Bd7 {[%clk 0:02:35.6]} 13. Bg3 {[%clk 0:02:20.6]} 13... g6 {[%clk
0:02:33.3]} 14. Qd2 {[%clk 0:02:20]} 14... Kg7 {[%clk 0:02:23.9]} 15. Bf4 {[%clk
0:02:20.7]} 15... Rh8 {[%clk 0:02:17.8]} 16. Rfe1 {[%clk 0:02:12.3]} 16... Qf8
{[%clk 0:02:17.7]} 17. Ne4 {[%clk 0:02:03.3]} 17... Nxe4 {[%clk 0:02:15.8]} 18.
fxe4 {[%clk 0:02:03.7]} 18... Re8 {[%clk 0:02:11.7]} 19. Qc3+ {[%clk 0:02:03.1]}
19... Kh7 {[%clk 0:02:10.4]} 20. e5 {[%clk 0:01:51.1]} 20... Qg7 {[%clk
0:01:56.9]} 21. b4 {[%clk 0:01:43.7]} 21... Bb6 {[%clk 0:01:56.8]} 22. a4 {[%clk
0:01:44.8]} 22... a5 {[%clk 0:01:46.4]} 23. bxa5 {[%clk 0:01:41.1]} 23... Bc5
{[%clk 0:01:42.7]} 24. Rab1 {[%clk 0:01:42]} 24... Rb8 {[%clk 0:01:15.9]} 25. h4
{[%clk 0:01:42.6]} 25... Rhe8 {[%clk 0:01:15.4]} 26. h5 {[%clk 0:01:27.4]} 26...
dxe5 {[%clk 0:01:03.5]} 27. Bxe5 {[%clk 0:01:27.2]} 27... Qf8 {[%clk 0:01:03.8]}
28. Bxc7 {[%clk 0:01:17.5]} 28... Rbc8 {[%clk 0:01:02.9]} 29. Qg3 {[%clk
0:00:56.7]} 29... Qg8 {[%clk 0:00:39.3]} 30. Rxe8 {[%clk 0:00:36.3]} 30... Rxe8
{[%clk 0:00:39.1]} 31. Rxb7 {[%clk 0:00:31.7]} 31... Re2 {[%clk 0:00:38.4]} 32.
hxg6+ {[%clk 0:00:28.5]} 32... fxg6 {[%clk 0:00:39.8]} 33. Bb6 {[%clk
0:00:26.4]} 33... Re1+ {[%clk 0:00:05.4]} 34. Kh2 {[%clk 0:00:27]} 34... Bxb6
{[%clk 0:00:04.8]} 35. Rxd7+ {[%clk 0:00:24.9]} 35... Kh8 {[%clk 0:00:05.3]} 36.
Qc3+ {[%clk 0:00:23]} 36... Bd4 {[%clk 0:00:03.1]} 37. Qxd4+ {[%clk 0:00:23.9]}
1-0